fUSD/lending_fUSD_20240210
["ID","MTS","AMOUNT","RATE_DAILY","PERIOD"]
[313650660,1707539448254,-639.56243768,0.00027935,2]
[313650661,1707539448263,-504.66072455,0.00027935,2]
[313650662,1707539448274,-500.0,0.00027935,2]
[313650663,1707539448283,-500.0,0.00027935,2]
[313650664,1707539448293,-520.44971961,0.00027935,2]
[313650665,1707539448302,-500.0,0.00027935,2]
[313650666,1707539448311,-500.0,0.00027935,2]
[313650667,1707539448320,-500.0,0.00027935,2]
[313650668,1707539448330,-500.0,0.00027935,2]
[313650669,1707539448339,-500.0,0.00027935,2]
[313650670,1707539448348,-500.0,0.00027935,2]
[313650671,1707539448359,-513.15637734,0.00027935,2]
[313650672,1707539448368,-516.03404276,0.00027935,2]
[313650673,1707539448378,-511.22238045,0.00027935,2]
[313650674,1707539448387,-500.0,0.00027935,2]
[313650675,1707539448397,-500.0,0.00027935,2]
[313650676,1707539448407,-509.55614957,0.00027935,2]
[313650677,1707539448418,-500.0,0.00027935,2]
[313650678,1707539448428,-500.0,0.00027935,2]
[313650679,1707539448438,-500.0,0.00027935,2]
[313650680,1707539448449,-500.0,0.00027935,2]
[313650681,1707539448459,-507.84216844,0.00027935,2]
[313650682,1707539448469,-500.0,0.00027935,2]
[313650683,1707539448479,-506.79119615,0.00027935,2]
[313650684,1707539448489,-500.0,0.00027935,2]
[313650685,1707539448499,-500.0,0.00027935,2]
[313650686,1707539448509,-500.0,0.00027935,2]
[313650687,1707539448519,-521.52362782,0.00027935,2]
[313650688,1707539448531,-500.0,0.00027935,2]
[313650689,1707539448540,-500.0,0.00027935,2]
[313650690,1707539448550,-500.0,0.00027935,2]
[313650691,1707539448559,-500.0,0.00027935,2]
[313650692,1707539448569,-500.0,0.00027935,2]
[313650693,1707539448578,-500.0,0.00027935,2]
[313650694,1707539448587,-500.0,0.00027935,2]
[313650695,1707539448598,-500.0,0.00027935,2]
[313650696,1707539448607,-207.54228913,0.00027935,2]
[313650697,1707539448617,-257.06041692,0.00027935,2]
[313650698,1707539448626,-500.0,0.00027935,2]
[313650699,1707539448636,-528.00284729,0.00027935,2]
[313650700,1707539448645,-500.0,0.00027935,2]
[313650701,1707539448655,-518.98694833,0.00027935,2]
[313650702,1707539448665,-500.0,0.00027935,2]
[313650703,1707539448674,-500.0,0.00027935,2]
[313650704,1707539448684,-178.95087253,0.00027935,2]
[313650705,1707539448693,-500.0,0.00027935,2]
[313650706,1707539448702,-508.02996265,0.00027935,2]
[313650707,1707539448712,-500.0,0.00027935,2]
[313650708,1707539448721,-500.0,0.00027935,2]
[313650709,1707539448741,-508.67936843,0.00027935,2]
[313650710,1707539448753,-514.14521731,0.00027935,2]
[313650711,1707539448763,-508.49264661,0.00027935,2]
[313650712,1707539448772,-500.0,0.00027935,2]
[313650713,1707539448783,-512.38167391,0.00027935,2]
[313650714,1707539448793,-509.78876874,0.00027935,2]
[313650715,1707539448803,-1000.0,0.00027935,2]
[313650716,1707539448813,-500.0,0.00027935,2]
[313650717,1707539448823,-511.72729434,0.00027935,2]
[313650718,1707539448833,-500.0,0.00027935,2]
[313650719,1707539448843,-500.0,0.00027935,2]
[313650720,1707539448853,-508.39723123,0.00027935,2]
[313650721,1707539448863,-521.88298156,0.00027935,2]
[313650722,1707539448873,-500.0,0.00027935,2]
[313650723,1707539448883,-500.0,0.00027935,2]
[313650724,1707539448892,-500.0,0.00027935,2]
[313650725,1707539448902,-500.0,0.00027935,2]
[313650726,1707539448912,-500.0,0.00027935,2]
[313650727,1707539448922,-500.0,0.00027935,2]
[313650728,1707539448932,-522.09395634,0.00027935,2]
[313650729,1707539448942,-500.0,0.00027935,2]
[313650730,1707539448951,-500.0,0.00027935,2]
[313650731,1707539448963,-467.8122628,0.00027935,2]
[313650732,1707539448975,-523.36985125,0.00027935,2]
[313650733,1707539448985,-500.0,0.00027935,2]
[313650734,1707539448995,-322.96015737,0.00027935,2]
[313650735,1707539449005,-500.0,0.00027935,2]
[313650736,1707539449015,-510.3329247,0.00027935,2]
[313650737,1707539449025,-500.0,0.00027935,2]
[313650738,1707539449034,-517.36818551,0.00027935,2]
[313650739,1707539449043,-500.0,0.00027935,2]
[313650740,1707539449054,-509.61603498,0.00027935,2]
[313650741,1707539449064,-500.0,0.00027935,2]
[313650742,1707539449073,-502.98247412,0.00027935,2]
[313650743,1707539449083,-500.0,0.00027935,2]
[313650744,1707539449093,-515.72774243,0.00027935,2]
[313650745,1707539449103,-513.88416852,0.00027935,2]
[313650746,1707539449114,-253.04052,0.00027935,2]
[313650747,1707539449124,-253.04052,0.00027935,2]
[313650748,1707539449134,-500.72192618,0.00027935,2]
[313650749,1707539449144,-253.04052,0.00027935,2]
[313650750,1707539449154,-253.040517,0.00027935,2]
[313650751,1707539449164,-500.0,0.00027935,2]
[313650752,1707539449173,-500.0,0.00027935,2]
[313650753,1707539449183,-500.0,0.00027935,2]
[313650754,1707539449192,-504.84521696,0.00027935,2]
[313650755,1707539449202,-500.0,0.00027935,2]
[313650756,1707539449211,-507.25877334,0.00027935,2]
[313650757,1707539449221,-523.89689184,0.00027935,2]
[313650758,1707539449231,-500.0,0.00027935,2]
[313650759,1707539449241,-500.0,0.00027935,2]
[313650760,1707539449251,-500.0,0.00027935,2]
[313650761,1707539449260,-500.0,0.00027935,2]
[313650762,1707539449274,-500.0,0.00027935,2]
[313650763,1707539449284,-500.0,0.00027935,2]
[313650764,1707539449294,-507.40980784,0.00027935,2]
[313650765,1707539449304,-500.0,0.00027935,2]
[313650766,1707539449314,-500.0,0.00027935,2]
[313650767,1707539449324,-506.55841656,0.00027935,2]
[313650768,1707539449335,-500.0,0.00027935,2]
[313650769,1707539449344,-640.44425678,0.00027935,2]
[313650770,1707539449354,-500.0,0.00027935,2]
[313650771,1707539449364,-500.0,0.00027935,2]
[313650772,1707539449374,-505.55896629,0.00027935,2]
[313650773,1707539449384,-500.0,0.00027935,2]
[313650774,1707539449394,-500.0,0.00027935,2]
[313650775,1707539449403,-500.0,0.00027935,2]
[313650776,1707539449413,-500.0,0.00027935,2]
[313650777,1707539449422,-500.0,0.00027935,2]
[313650778,1707539449432,-520.0159076,0.00027935,2]
[313650779,1707539449443,-569.29571872,0.00027935,2]
[313650780,1707539449453,-500.0,0.00027935,2]
[313650781,1707539449463,-512.44843002,0.00027935,2]
[313650782,1707539449473,-500.0,0.00027935,2]
[313650783,1707539449483,-548.72593914,0.00027935,2]
[313650784,1707539449493,-524.1573415,0.00027935,2]
[313650785,1707539449503,-528.9871849,0.00027935,2]
[313650786,1707539449513,-500.0,0.00027935,2]
[313650787,1707539449523,-500.0,0.00027935,2]
[313650788,1707539449534,-466.63590475,0.00027935,2]
[313650789,1707539449544,-531.16363695,0.00027935,2]
[313650790,1707539449554,-512.22517575,0.00027935,2]
[313650791,1707539449565,-500.0,0.00027935,30]
[313650792,1707539449575,-500.0,0.00027935,2]
[313650793,1707539449585,-500.0,0.00027935,2]
[313650794,1707539449596,-533.58085955,0.00027935,2]
[313650795,1707539449608,-519.97048132,0.00027935,2]
[313650796,1707539449619,-500.0,0.00027935,2]
[313650797,1707539449629,-500.0,0.00027935,2]
[313650798,1707539449639,-500.0,0.00027935,2]
[313650799,1707539449648,-516.63030336,0.00027935,2]
[313650800,1707539449658,-508.90817584,0.00027935,2]
[313650801,1707539449669,-499.38568252,0.00027935,2]
[313650802,1707539449678,-514.88950486,0.00027935,2]
[313650803,1707539449688,-500.0,0.00027935,2]
[313650804,1707539449698,-500.0,0.00027935,2]
[313650805,1707539449708,-500.0,0.00027935,2]
[313650806,1707539449718,-500.0,0.00027935,2]
[313650807,1707539449727,-500.0,0.00027935,2]
[313650808,1707539449739,-500.0,0.00027935,2]
[313650809,1707539449750,-500.0,0.00027935,2]
[313650810,1707539449760,-500.0,0.00027935,2]
[313650811,1707539449769,-500.0,0.00027935,2]
[313650812,1707539449780,-500.0,0.00027935,2]
[313650813,1707539449789,-500.0,0.00027935,2]
[313650814,1707539449802,-500.0,0.00027935,2]
[313650815,1707539449812,-500.0,0.00027935,2]
[313650816,1707539449821,-500.0,0.00027935,2]
[313650817,1707539449831,-500.0,0.00027935,2]
[313650818,1707539449841,-500.0,0.00027935,2]
[313650819,1707539449851,-500.0,0.00027935,2]
[313650820,1707539449860,-500.0,0.00027935,2]
[313650821,1707539449870,-409.40370037,0.00027935,2]
[313650822,1707539449880,-502.78700479,0.00027935,2]
[313650823,1707539449890,-505.8631266,0.00027935,2]
[313650824,1707539449900,-504.70246801,0.00027935,2]
[313650825,1707539449910,-500.0,0.00027935,2]
[313650826,1707539449920,-500.0,0.00027935,2]
[313650827,1707539449931,-518.94672879,0.00027935,2]
[313650828,1707539449942,-500.0,0.00027935,2]
[313650829,1707539449951,-532.95872812,0.00027935,2]
[313650830,1707539449961,-521.24950638,0.00027935,2]
[313650831,1707539449975,-500.0,0.00027935,2]
[313650832,1707539449985,-500.0,0.00027935,2]
[313650833,1707539449995,-500.0,0.00027935,2]
[313650834,1707539450005,-500.0,0.00027935,2]
[313650835,1707539450017,-500.0,0.00027935,2]
[313650836,1707539450027,-500.0,0.00027935,2]
[313650837,1707539450037,-500.0,0.00027935,2]
[313650838,1707539450050,-500.0,0.00027935,2]
[313650839,1707539450061,-500.0,0.00027935,2]
[313650840,1707539450071,-500.0,0.00027935,2]
[313650841,1707539450081,-500.0,0.00027935,2]
[313650842,1707539450091,-500.0,0.00027935,2]
[313650843,1707539450100,-500.0,0.00027935,2]
[313650844,1707539450110,-500.0,0.00027935,2]
[313650845,1707539450121,-500.0,0.00027935,2]
[313650846,1707539450130,-500.0,0.00027935,2]
[313650847,1707539450140,-500.0,0.00027935,2]
[313650848,1707539450150,-500.0,0.00027935,2]
[313650849,1707539450161,-500.0,0.00027935,2]
[313650850,1707539450171,-500.0,0.00027935,2]
[313650851,1707539450181,-500.0,0.00027935,2]
[313650852,1707539450191,-500.0,0.00027935,2]
[313650853,1707539450202,-500.0,0.00027935,2]
[313650854,1707539450212,-500.0,0.00027935,2]
[313650855,1707539450222,-500.0,0.00027935,2]
[313650856,1707539450232,-506.45261277,0.00027935,2]
[313650857,1707539450241,-500.0,0.00027935,2]
[313650858,1707539450251,-504.32696988,0.00027935,2]
[313650859,1707539450261,-507.09949219,0.00027935,2]
[313650860,1707539450272,-500.0,0.00027935,2]
[313650861,1707539450283,-500.0,0.00027935,2]
[313650862,1707539450292,-1000.0,0.00027935,7]
[313650863,1707539450302,-506.46004541,0.00027935,2]
[313650864,1707539450312,-500.0,0.00027935,2]
[313650865,1707539450322,-500.0,0.00027935,2]
[313650866,1707539450331,-507.31649706,0.00027935,2]
[313650867,1707539450341,-500.0,0.00027935,2]
[313650868,1707539450354,-500.0,0.00027935,2]
[313650869,1707539450364,-500.0,0.00027935,2]
[313650870,1707539450374,-500.0,0.00027935,2]
[313650871,1707539450383,-508.5715516,0.00027935,2]
[313650872,1707539450393,-500.0,0.00027935,2]
[313650873,1707539450403,-500.0,0.00027935,2]
[313650874,1707539450413,-566.16827162,0.00027935,2]
[313650875,1707539450423,-500.0,0.00027935,2]
[313650876,1707539450432,-500.0,0.00027935,2]
[313650877,1707539450443,-500.0,0.00027935,2]
[313650878,1707539450453,-500.0,0.00027935,2]
[313650879,1707539450462,-500.0,0.00027935,2]
[313650880,1707539450472,-500.0,0.00027935,2]
[313650881,1707539450482,-500.0,0.00027935,2]
[313650882,1707539450491,-500.0,0.00027935,2]
[313650883,1707539450501,-500.0,0.00027935,2]
[313650884,1707539450510,-500.0,0.00027935,2]
[313650885,1707539450521,-500.0,0.00027935,2]
[313650886,1707539450531,-500.0,0.00027935,2]
[313650887,1707539450541,-180.21990762,0.00027935,2]
[313650888,1707539450551,-500.0,0.00027935,2]
[313650889,1707539450561,-714.2,0.00027935,2]
[313650890,1707539450571,-500.0,0.00027935,2]
[313650891,1707539450582,-500.0,0.00027935,2]
[313650892,1707539450592,-500.0,0.00027935,2]
[313650893,1707539450601,-500.0,0.00027935,2]
[313650894,1707539450611,-500.0,0.00027935,2]
[313650895,1707539450621,-500.0,0.00027935,2]
[313650896,1707539450630,-500.0,0.00027935,2]
[313650897,1707539450640,-500.0,0.00027935,2]
[313650898,1707539450650,-150.0,0.00027935,2]
[313650899,1707539450659,-150.0,0.00027935,2]
[313650900,1707539450669,-514.35125115,0.00027935,2]
[313650901,1707539450679,-368.34689052,0.00027935,2]
[313650902,1707539450722,-131.65310948,0.00027935,2]
[313650903,1707539450731,-500.0,0.00027935,2]
[313650904,1707539450741,-500.0,0.00027935,2]
[313650905,1707539450751,-500.0,0.00027935,2]
[313650906,1707539450761,-500.0,0.00027935,2]
[313650907,1707539450771,-500.0,0.00027935,2]
[313650908,1707539450781,-468.85834953,0.00027935,2]
[313650909,1707539450794,-31.14165047,0.00027935,2]
[313650910,1707539450804,-500.0,0.00027935,2]
[313650911,1707539450814,-500.0,0.00027935,2]
[313650912,1707539450825,-315.95689331,0.00027935,2]
[313650913,1707539450838,-184.04310669,0.00027935,2]
[313650914,1707539450848,-500.0,0.00027935,2]
[313650915,1707539450858,-528.19266311,0.00027935,2]
[313650916,1707539450868,-500.0,0.00027935,2]
[313650917,1707539450878,-351.7642302,0.00027935,2]
[313650918,1707539450891,-148.2357698,0.00027935,2]
[313650919,1707539450901,-500.0,0.00027935,2]
[313650920,1707539450910,-500.8206407,0.00027935,2]
[313650921,1707539450921,-500.0,0.00027935,2]
[313650922,1707539450931,-210.9435895,0.00027935,2]
[313650923,1707539451528,-219.724846,0.00027647,7]
[313650924,1707539451539,-126.0894148,0.00027648,7]
[313650925,1707539451922,-93.6354312,0.00027648,7]
[313650926,1707539451932,-219.724846,0.00027839,7]
[313650927,1707539451941,-219.724846,0.0002792,7]
[313650928,1707539451951,-219.724846,0.0002792,7]
[313650929,1707539451960,-11.59763936,0.0002792,7]
[313650932,1707540209226,2520.57479357,0.0002094,2]
[313650935,1707540457495,549.20310788,0.0002094,7]
[313650936,1707540475452,408.15052777,0.0002094,7]
[313650947,1707540631826,-155.0,0.00023917,2]
[313650948,1707540631835,-198.62981947,0.00023917,2]
[313650949,1707540631847,-848.13813086,0.00023917,2]
[313650950,1707540631856,-608.04623205,0.00023918,2]
[313650951,1707540631868,-394.61416969,0.00023918,2]
[313650952,1707540631880,-411.68315571,0.00023918,2]
[313650953,1707540631934,-3127.57311282,0.00023918,2]
[313650954,1707540631943,-155.0,0.00023918,2]
[313650955,1707540631953,-164.81515851,0.00023922,2]
[313650956,1707540631962,-224.7,0.0002398,2]
[313650957,1707540631971,-150.0,0.00024021,2]
[313650958,1707540631981,-1380.3254,0.00024024,2]
[313650959,1707540631990,-164.81515849,0.0002513,2]
[313650960,1707540632000,-213.0,0.00025581,2]
[313650961,1707540632009,-2307.0,0.000258,2]
[313650962,1707540632019,-173.94,0.00025878,2]
[313650963,1707540632028,-2000.0,0.00025893,2]
[313650964,1707540632037,-250.0,0.00025976,2]
[313650965,1707540632046,-250.0,0.00025977,2]
[313650967,1707540632056,-250.0,0.00026002,2]
[313650969,1707540632065,-150.0,0.00026005,2]
[313650971,1707540632074,-9365.08,0.00026005,2]
[313650972,1707540632083,-310.41,0.00026029,2]
[313650973,1707540632093,-1000.0,0.00026049,2]
[313650974,1707540632102,-361.5,0.00026072,2]
[313650975,1707540632111,-150.0,0.00026129,2]
[313650976,1707540632121,-153.04,0.0002617,2]
[313650977,1707540632130,-186.24,0.00026203,2]
[313650978,1707540632140,-224.7,0.00026244,2]
[313650979,1707540632149,-176.59,0.00026338,2]
[313650980,1707540632159,-164.81515849,0.00026338,2]
[313650981,1707540632169,-153.04,0.00026398,2]
[313650982,1707540632178,-210.0,0.00026423,2]
[313650983,1707540632188,-417.99,0.00026575,2]
[313650984,1707540632197,-417.99,0.00026575,2]
[313650985,1707540632206,-153.04,0.00026625,2]
[313650986,1707540632216,-182.42827529,0.00026646,2]
[313650987,1707540632225,-500.0,0.00026646,2]
[313650988,1707540632234,-427.75,0.00026778,2]
[313650989,1707540632244,-153.04,0.00026852,2]
[313650990,1707540632253,-157.012,0.00027048,2]
[313650991,1707540632262,-153.04,0.0002708,2]
[313650992,1707540632272,-157.012,0.00027098,2]
[313650993,1707540632281,-157.012,0.00027118,2]
[313650994,1707540632291,-157.012,0.00027148,2]
[313650995,1707540632300,-172.50019933,0.00027178,6]
[313650996,1707540632310,-417.99,0.00027178,2]
[313650997,1707540632320,-416.69,0.00027178,2]
[313650998,1707540632333,-502.95918244,0.00027194,2]
[313650999,1707540632342,-157.012,0.00027198,2]
[313651000,1707540632351,-157.012,0.00027218,2]
[313651001,1707540632362,-157.012,0.00027248,2]
[313651002,1707540632371,-157.012,0.00027298,2]
[313651003,1707540632380,-153.04,0.00027307,2]
[313651004,1707540632391,-157.012,0.00027318,2]
[313651005,1707540632400,-157.012,0.00027348,2]
[313651006,1707540632412,-173.3,0.00027397,2]
[313651007,1707540632422,-411.17,0.00027397,2]
[313651008,1707540632431,-411.17,0.00027397,2]
[313651009,1707540632440,-411.17,0.00027397,2]
[313651010,1707540632450,-411.17,0.00027397,2]
[313651011,1707540632459,-420.29,0.00027397,2]
[313651012,1707540632468,-368.37,0.00027397,2]
[313651013,1707540632478,-157.012,0.00027398,2]
[313651014,1707540632487,-157.012,0.00027418,2]
[313651015,1707540632496,-169.42,0.00027436,2]
[313651016,1707540632505,-371.0576902,0.00027443,3]
[313651017,1707540632514,-534.32139902,0.00027443,2]
[313651018,1707540632524,-2630.62211639,0.00027444,2]
[313651019,1707540632540,-157.012,0.00027448,2]
[313651020,1707540632554,-157.012,0.00027498,2]
[313651021,1707540632564,-52520.7442326,0.000275,2]
[313651022,1707540632574,-157.012,0.00027518,2]
[313651023,1707540632583,-224.73876004,0.00027532,2]
[313651024,1707540632593,-153.04,0.00027534,2]
[313651025,1707540632603,-2646.55,0.00027537,2]
[313651026,1707540632614,-224.73876004,0.00027537,2]
[313651027,1707540632624,-500.0,0.00027541,2]
[313651028,1707540632633,-500.0,0.00027541,2]
[313651029,1707540632643,-500.0,0.00027541,2]
[313651030,1707540632653,-500.0,0.00027541,2]
[313651031,1707540632663,-500.0,0.00027541,2]
[313651032,1707540632672,-173.02426217,0.00027541,2]
[313651033,1707540632681,-500.0,0.00027541,2]
[313651034,1707540632691,-500.0,0.00027541,2]
[313651035,1707540632701,-500.0,0.00027541,2]
[313651036,1707540632710,-500.0,0.00027541,2]
[313651037,1707540632719,-134156.05204687,0.00027542,2]
[313651038,1707540632735,-499.82864977,0.00027542,2]
[313651039,1707540632746,-327.01287504,0.00027542,2]
[313651040,1707540632765,-7600.81963993,0.00027542,2]
[313651041,1707540632777,-54221.57066884,0.00027542,2]
[313651042,1707540632789,-136297.98341641,0.00027542,2]
[313651043,1707540638090,-55555.0,0.00027445,2]
[313651044,1707540638100,-2643.02544214,0.00027447,2]
[313651045,1707540638110,-2117.24,0.00027532,2]
[313651046,1707540638119,-2117.24,0.00027532,2]
[313651047,1707540638129,-2117.24,0.00027532,2]
[313651048,1707540638138,-2117.24,0.00027532,2]
[313651049,1707540638148,-2117.24,0.00027533,2]
[313651050,1707540638158,-2117.24,0.00027535,2]
[313651051,1707540638168,-2117.24,0.00027535,2]
[313651052,1707540638178,-2117.24,0.00027537,2]
[313651053,1707540638187,-500.0,0.00027541,2]
[313651054,1707540638197,-838.5,0.00027541,2]
[313651055,1707540638207,-24024.91380089,0.00027542,2]
[313651056,1707540638228,-6764.91429052,0.00027542,2]
[313651059,1707540640996,-1769.48740449,0.00027542,2]
[313651060,1707540641010,-751.02933199,0.00027542,2]
[313651061,1707540641106,-1430.18375976,0.00027542,2]
[313651093,1707540642978,-595.86075396,0.00027542,2]
[313651094,1707540642990,-1322.54206183,0.00027542,2]
[313651095,1707540643141,-359347.22532047,0.00027542,2]
[313651096,1707540645779,-731.84,0.00027541,2]
[313651097,1707540645789,-3230.25042165,0.00027542,2]
[313651098,1707540645889,-1305.46819002,0.00027542,2]
[313651099,1707540645901,-1433.49229833,0.00027542,2]
[313651100,1707540645997,-760.85099668,0.00027542,2]
[313651101,1707540646009,-672.42672211,0.00027542,2]
[313651102,1707540646114,-256.28490031,0.00027542,2]
[313651103,1707540681135,6481.0141,0.00023822,14]
[313651104,1707540729941,500.0,0.00027545,15]
[313651106,1707540936074,542.65461404,0.00027543,30]
[313651295,1707541297143,500.0,0.00027543,14]
[313651296,1707541384647,301.07892234,0.00027576,30]
[313651297,1707541396183,496.62973707,0.00027441,13]
[313651298,1707541398328,515.47665915,0.00027543,30]
[313651299,1707541399631,339.71419117,0.000276,9]
[313651302,1707541541566,397.30378968,0.00026749,12]
[313651303,1707541546572,397.30378964,0.00027398,13]
[313651304,1707541567832,210.0,0.00022581,2]
[313651305,1707541629710,239.33,0.00021012,2]
[313651306,1707541682017,238.3822738,0.00025927,11]
[313651307,1707541687048,238.38227378,0.00026681,12]
[313651308,1707541692054,238.38227378,0.00027434,13]
[313651312,1707541737849,627.01162162,0.00022074,2]
[313651313,1707541745674,213.0,0.00022581,2]
[313651314,1707541758539,-301.78442798,0.00022849,2]
[313651315,1707541758560,-155.0,0.0002285,2]
[313651316,1707541758583,-191.82366484,0.0002285,2]
[313651317,1707541758604,-155.0,0.00022851,2]
[313651318,1707541758626,-200.0,0.00022855,2]
[313651319,1707541758650,-221.0,0.00022878,2]
[313651320,1707541758674,-152.56464477,0.00022897,2]
[313651321,1707541758696,-6084.69932666,0.000229,2]
[313651322,1707541758719,-165.44,0.00022949,2]
[313651323,1707541758741,-224.73876005,0.00022987,2]
[313651324,1707541758761,-2000.0,0.00022989,2]
[313651325,1707541758782,-157.021,0.00022995,2]
[313651326,1707541758803,-157.021,0.00022995,2]
[313651327,1707541758825,-157.021,0.00022995,2]
[313651328,1707541758846,-157.021,0.00022995,2]
[313651329,1707541758868,-157.021,0.00022995,2]
[313651330,1707541758889,-157.021,0.00022995,2]
[313651331,1707541758911,-157.021,0.00022995,2]
[313651332,1707541758933,-157.021,0.00022995,2]
[313651333,1707541758954,-157.021,0.00022995,2]
[313651334,1707541758974,-499.99,0.00022995,2]
[313651335,1707541758994,-3314.28,0.00022995,2]
[313651336,1707541759015,-129987.82277163,0.00022996,2]
[313651337,1707541759037,-837662.92434576,0.00022997,2]
[313651338,1707541759058,-14780.96118632,0.00022998,2]
[313651339,1707541759081,-195510.65751287,0.00023,2]
[313651345,1707541776789,155.0,0.00023,2]
[313651346,1707541778372,284.1069284,0.00023,2]
[313651347,1707541779547,535.66883484,0.00023,2]
[313651348,1707541780813,404.01239338,0.0002231,2]
[313651349,1707541780838,271.77234569,0.00023,2]
[313651350,1707541780870,876.60554203,0.0002093,2]
[313651351,1707541781749,888.30504813,0.00023,2]
[313651352,1707541782312,810.19074066,0.00023,2]
[313651353,1707541784201,869.67746725,0.00023,2]
[313651356,1707541784937,500.0,0.00023,2]
[313651357,1707541786877,2333.21880977,0.00023,2]
[313651358,1707541791961,277.28074377,0.00023,2]
[313651359,1707541795531,535.66883484,0.00023,2]
[313651360,1707541798820,331.41271451,0.00023,2]
[313651361,1707541799731,888.30504813,0.00023,2]
[313651362,1707541800365,284.1069284,0.00023,2]
[313651363,1707541800920,500.0,0.00023,2]
[313651364,1707541802182,869.67746725,0.00023,2]
[313651365,1707541802295,810.19074066,0.00023,2]
[313651366,1707541803376,150.0,0.00023,2]
[313651367,1707541803602,150.0,0.00023,2]
[313651368,1707541803777,150.0,0.00023,2]
[313651369,1707541803965,150.0,0.00023,2]
[313651370,1707541804772,150.0,0.00023,2]
[313651371,1707541804819,150.0,0.00023,2]
[313651372,1707541804867,204.0,0.00022581,2]
[313651373,1707541804919,150.0,0.00023,2]
[313651374,1707541805000,876.60554203,0.0002093,2]
[313651375,1707541805041,150.0,0.00023,2]
[313651376,1707541805182,150.0,0.00023,2]
[313651377,1707541805369,150.0,0.00023,2]
[313651378,1707541805561,150.0,0.00023,2]
[313651379,1707541805873,150.0,0.00023,2]
[313651380,1707541805937,150.0,0.00023,2]
[313651381,1707541806120,150.0,0.00023,2]
[313651382,1707541806343,150.0,0.00023,2]
[313651383,1707541806529,150.0,0.00023,2]
[313651384,1707541806694,150.0,0.00023,2]
[313651385,1707541806724,2337.27798592,0.00023,2]
[313651386,1707541806892,150.0,0.00023,2]
[313651387,1707541807085,500.0,0.00022997,2]
[313651388,1707541807112,500.0,0.00022997,2]
[313651389,1707541807139,150.0,0.00023,2]
[313651390,1707541807205,500.0,0.00022997,2]
[313651391,1707541807237,500.0,0.00022997,2]
[313651392,1707541807270,500.0,0.00022997,2]
[313651393,1707541807297,422.18085117,0.00022997,2]
[313651394,1707541807335,500.0,0.00022997,2]
[313651395,1707541807375,150.0,0.00023,2]
[313651396,1707541807405,500.0,0.00022997,2]
[313651397,1707541807452,210.73957294,0.00022997,2]
[313651398,1707541807500,150.0,0.00023,2]
[313651399,1707541807630,150.0,0.00023,2]
[313651400,1707541807804,150.0,0.00023,2]
[313651401,1707541808039,150.0,0.00023,2]
[313651402,1707541808166,150.0,0.00023,2]
[313651403,1707541808351,150.0,0.00023,2]
[313651404,1707541808541,150.0,0.00023,2]
[313651405,1707541808716,150.0,0.00023,2]
[313651406,1707541808910,150.0,0.00023,2]
[313651407,1707541809137,150.0,0.00023,2]
[313651408,1707541809306,150.0,0.00023,2]
[313651410,1707541809479,150.0,0.00023,2]
[313651412,1707541809678,270.06678524,0.00023,2]